Cogmind - Beta 10.2 @@@ ROGUE MODE // 2021.01.03 @ 23:26:57 Player: T-100 Result: Destroyed by S-10 Pest with Light Assault Rifle Performance ------------- Evolutions (1) 500 Regions Visited (3) 600 Robots Destroyed (14) 70 Value Destroyed (303) 303 Prototype IDs (1) 20 Alien Tech Used (0) 0 Bonus (38) 38 TOTAL SCORE: 1531 Bonus ------- High Alert Combat Kills 24 Follower Combat Kills 14 Cogmind --------- Core Integrity 0/400 Matter 300/300 Energy 63/100 System Corruption 0% Temperature Cool (0) Movement Core (50) Location -9/Mines Parts ------- > --- POWER (1) -------- (None) > --- PROPULSION (2) --- (None) > --- UTILITY (2) ------ Advanced Targeting Computer ECM Suite > --- WEAPON (4) ------- (None) > --- INVENTORY (4) ---- Small Matter Pod (50) Peak State ------------ > --- POWER ------------ Improved Ion Engine > --- PROPULSION ------- Wheel Wheel > --- UTILITY ---------- ECM Suite ECM Suite > --- WEAPON ----------- Advanced Beam Cannon Light Assault Rifle Light Assault Rifle Light Assault Rifle > --- INVENTORY -------- Light Ion Engine Aluminum Leg Compact Wheel Light Assault Rifle [Rating: 12] Favorites ----------- Power Improved Ion Engine Engine Improved Ion Engine Propulsion Wheel Wheel Wheel Utility ECM Suite Device ECM Suite Storage Small Storage Unit Processor Advanced Targeting Computer Weapon Light Assault Rifle Energy Cannon Advanced Beam Cannon Ballistic Gun Light Assault Rifle Build | -11 -10 -9 -9 ------- Run | Scr Mat Mat Min Slots Evolved 2 | . . 2 . Power . | . . . . Propulsion . | . . . . Utility . | . . . . Weapon 2 | . . 2 . Parts Attached 22 | 7 3 12 . Power 5 | 2 . 3 . Engine 5 | 2 . 3 . Core . | . . . . Reactor . | . . . . Propulsion 6 | 2 1 3 . Treads . | . . . . Leg . | . . . . Wheel 6 | 2 1 3 . Hover . | . . . . Flight . | . . . . Utility 4 | 1 2 1 . Device 2 | . 2 . . Storage 1 | 1 . . . Processor 1 | . . 1 . Hackware . | . . . . Protection . | . . . . Artifact . | . . . . Weapon 7 | 2 . 5 . Energy Gun . | . . . . Energy Cannon 1 | . . 1 . Ballistic Gun 6 | 2 . 4 . Ballistic Cannon . | . . . . Launcher . | . . . . Special Weapon . | . . . . Impact Weapon . | . . . . Slashing Weapon . | . . . . Piercing Weapon . | . . . . Special Melee Weapon . | . . . . Unidentified Prototypes 1 | . . 1 . Parts Lost 12 | . . 12 . Power 2 | . . 2 . Propulsion 5 | . . 5 . Utility 1 | . . 1 . Weapon 4 | . . 4 . Highest Loss Streak 8 | . . 8 . Average Slot Usage (%) 75 | . 99 84 22 Engine 9 | . 14 10 . Wheel 16 | . 28 18 . Device 19 | . 26 20 11 Processor 2 | . . 1 11 Energy Cannon 2 | . . 4 . Ballistic Gun 23 | . 28 29 . Naked Turns . | . . . . Heaviest Build 16 | 11 11 16 1 Greatest Support 26 | 26 26 20 3 Greatest Overweight (x) 2 | 2 . 1 . Average Overweight (x) . | . . . . Largest Inventory Capacity 6 | 6 6 4 4 Average Capacity 4 | 5 4 4 4 Most Carried 6 | 6 6 4 1 Average Carried 2 | 3 4 3 1 Final Capacity 6 | 6 4 4 4 Final Carried 6 | 6 4 1 1 Class Distribution -------------------- 53% | Mutant 46% | Gunner Dominant Class ---------------- Mutant | -10/Materials Gunner | -9/Materials Mutant | -9/Mines Resources | -11 -10 -9 -9 ----------- Run | Scr Mat Mat Min Matter Collected 493 | 278 48 167 . Remotely . | . . . . Salvage Created 530 | 125 46 359 . Parts 33 | 5 3 25 . Haulers Intercepted . | . . . . Recyclers Shooed . | . . . . Parts Field Recycled . | . . . . Retrieved Matter . | . . . . Parts Self-Destructed . | . . . . Prevented . | . . . . Kills | -11 -10 -9 -9 ------- Run | Scr Mat Mat Min Combat Hostiles Destroyed 11 | . 1 10 . Guns 9 | . 1 8 . Cannons 2 | . . 2 . Classes Destroyed 6 | 2 1 3 . Worker 1 | . . 1 . Tunneler 1 | 1 . . . Recycler 1 | 1 . . . Swarmer 4 | . . 4 . Grunt 6 | . 1 5 . Sentry 1 | . . 1 . Best Kill Streak 4 | 2 1 4 . Combat Bots Only 4 | . 1 4 . Max Kills in Single Turn 1 | 1 1 1 . Gunslinging . | . . . . Exploded . | . . . . Melee . | . . . . Uniques/NPCs Destroyed . | . . . . Combat | -11 -10 -9 -9 -------- Run | Scr Mat Mat Min Damage Taken 1094 | . 31 997 66 Core 405 | . . 341 64 Absorbed by Shields . | . . . . Core Remaining (%) 100 | 100 100 . . Volleys Fired 46 | 4 9 33 . Largest 4 | 2 2 4 . Hottest 128 | 40 40 128 . Shots Fired 147 | 8 18 121 . Gun 128 | 8 18 102 . Cannon 19 | . . 19 . Launcher . | . . . . Special . | . . . . Kinetic 128 | 8 18 102 . Thermal 19 | . . 19 . Explosive . | . . . . Electromagnetic . | . . . . Robot Hit Streak 11 | 4 8 11 . Robot Miss Streak 5 | 2 5 3 . Penetration Max . | . . . . Secondary Targets 2 | . . 2 . Max Gunslinging Chain 1 | . . 1 . Shots Hit Robots 88 | 5 11 72 . Core Hits 31 | 3 4 23 1 Critical Hits . | . . . . Critical Kills . | . . . . Critical Parts Destroyed . | . . . . Melee Attacks . | . . . . Impact . | . . . . Slashing . | . . . . Piercing . | . . . . Sneak Attacks . | . . . . Combat Hostiles . | . . . . Follow-up Attacks . | . . . . Damage Inflicted 596 | 36 71 484 5 Guns 428 | 36 71 321 . Cannons 163 | . . 163 . Explosions . | . . . . Melee . | . . . . Ramming 5 | . . . 5 Kinetic 428 | 36 71 321 . Thermal 163 | . . 163 . Explosive . | . . . . Electromagnetic . | . . . . Impact . | . . . . Slashing . | . . . . Piercing . | . . . . Highest Corruption . | . . . . Average Corruption . | . . . . Corruption Purged . | . . . . Overload Shots . | . . . . Overflow Damage . | . . . . Projectiles . | . . . . Explosions . | . . . . Melee . | . . . . Knockbacks . | . . . . Impact . | . . . . Kinetic . | . . . . Secondary . | . . . . Self-Inflicted Damage 2 | . . . 2 Shots . | . . . . Rammed 2 | . . . 2 Targets Rammed 2 | . . . 2 Kicked . | . . . . Crushed . | . . . . Highest Temperature 670 | . 6 670 . Average Temperature 209 | . 6 216 . Received Heat Transfer 135 | . 18 111 6 Effects 13 | . . 13 . Shutdowns 2 | . . 2 . Energy Bleed 2 | . . 2 . Interference 2 | . . 2 . Damage (minor) 1 | . . 1 . Damage (major) 4 | . . 4 . Damage (core) 2 | . . 2 . Siege Activations . | . . . . Robots Corrupted . | . . . . Combat Hostiles . | . . . . Parts Fried . | . . . . Impact Corruptions . | . . . . Robots Melted . | . . . . Combat Hostiles . | . . . . Parts Melted . | . . . . Heat Transferred 296 | . . 296 . Parts Sabotaged . | . . . . Parts Stolen . | . . . . Parts Stripped . | . . . . Power Chain Reactions . | . . . . Missiles Intercepted . | . . . . Alert | -11 -10 -9 -9 ------- Run | Scr Mat Mat Min Peak Influence 555 | 10 41 555 321 Initial 216 | . 6 16 216 Average 251 | 2 24 331 280 Maximum Alert Level 2 | . . 2 1 Low Security (%) 29 | 100 100 11 . Level 1 58 | . . 68 100 Level 2 12 | . . 20 . Level 3 . | . . . . Level 4 . | . . . . Level 5 . | . . . . High Security . | . . . . Max Security . | . . . . Squads Dispatched 5 | . . 5 . Investigation 1 | . . 1 . Extermination . | . . . . Reinforcement 4 | . . 4 . Assault . | . . . . Garrison . | . . . . Intercept . | . . . . Construction Impeded . | . . . . Haulers Reinforced . | . . . . Stealth | -11 -10 -9 -9 --------- Run | Scr Mat Mat Min Distress Signals 6 | . 1 5 . Communications Jammed . | . . . . Distress Signals . | . . . . Times Spotted 69 | . 3 53 13 Peak Tracking Total 6 | . 2 6 6 Tactical Retreats 16 | . 1 13 2 Traps | -11 -10 -9 -9 ------- Run | Scr Mat Mat Min Traps Triggered 1 | . . 1 . Indirectly . | . . . . Trap Hack Attempts . | . . . . Triggered . | . . . . Disarmed . | . . . . Reprogrammed . | . . . . Reused . | . . . . Traps Extracted . | . . . . Installed . | . . . . Triggered . | . . . . Machines | -11 -10 -9 -9 ---------- Run | Scr Mat Mat Min Machines Disabled . | . . . . Max in Single Turn . | . . . . Machines Sabotaged . | . . . . Garrisons Compromised . | . . . . Overloaded Fab Kills . | . . . . Fab Network Shutdowns . | . . . . Hacking | -11 -10 -9 -9 --------- Run | Scr Mat Mat Min Machines Accessed 2 | . 1 1 . Terminals 2 | . 1 1 . Fabricators . | . . . . Repair Stations . | . . . . Recycling Units . | . . . . Scanalyzers . | . . . . Garrison Access . | . . . . Total Hacks 4 | . 1 3 . Successful 1 | . . 1 . Failed 3 | . 1 2 . Catastrophic . | . . . . Database Lockouts . | . . . . Manual . | . . . . Terminals 4 | . 1 3 . Fabricators . | . . . . Repair Stations . | . . . . Recycling Units . | . . . . Scanalyzers . | . . . . Garrison Access . | . . . . Terminal Hacks 1 | . . 1 . Emergency Access Points 1 | . . 1 . Fabricator Hacks . | . . . . Repair Station Hacks . | . . . . Recycling Unit Hacks . | . . . . Scanalyzer . | . . . . Garrison Access Hacks . | . . . . Unauthorized Hacks . | . . . . Terminals . | . . . . Fabricators . | . . . . Repair Stations . | . . . . Recycling Units . | . . . . Scanalyzers . | . . . . Garrison Access . | . . . . Data Cores Recovered . | . . . . Used . | . . . . Hacking Detections . | . . . . Full Trace Events . | . . . . Feedback Events . | . . . . Feedback Blocked . | . . . . Robot Schematics Acquired . | . . . . Robots Built . | . . . . Matter . | . . . . Time . | . . . . Total Robot Build Rating . | . . . . Part Schematics Acquired . | . . . . Parts Built . | . . . . Matter . | . . . . Time . | . . . . Total Part Build Rating . | . . . . Parts Repaired . | . . . . Time . | . . . . Parts Recycled . | . . . . Recycled Matter . | . . . . Retrieved Matter . | . . . . Retrieved Components . | . . . . Parts Scanalyzed . | . . . . Part Schematics Acquired . | . . . . Parts Damaged . | . . . . Bothacking | -11 -10 -9 -9 ------------ Run | Scr Mat Mat Min Used RIF Installer . | . . . . Robots Hacked . | . . . . Non-combat . | . . . . Combat . | . . . . Robot Hacks Applied . | . . . . Relay Couplers Released . | . . . . Robots Rewired . | . . . . Allies Hacked . | . . . . Hacks Repelled . | . . . . Allies | -11 -10 -9 -9 -------- Run | Scr Mat Mat Min Total Allies 2 | . . . 2 Largest Group 2 | . . . 2 Highest-Rated Group 45 | . . . 45 Highest-Rated Ally 31 | . . . 31 Total Orders . | . . . . Ally Attacks 5 | . . . 5 Total Damage 86 | . . . 86 Kills 2 | . . . 2 Allies Corrupted . | . . . . Allies Melted . | . . . . Intel | -11 -10 -9 -9 ------- Run | Scr Mat Mat Min Robot Analysis Total . | . . . . Derelict Logs Recovered 1 | . . . 1 Drone Launches . | . . . . Drone Recoveries . | . . . . Exploration | -11 -10 -9 -9 ------------- Run | Scr Mat Mat Min Turns Passed 1256 | 83 203 748 222 Spaces Moved 1064 | 65 141 517 341 Core 453 | 10 . 102 341 Treads . | . . . . Legs . | . . . . Wheels 611 | 55 141 415 . Hover . | . . . . Flight . | . . . . Fastest Speed 50 | 50 80 50 50 Average Speed 69 | 87 86 75 50 Slowest Speed 150 | 150 90 100 50 Overloaded Moves . | . . . . Propulsion Burnouts . | . . . . Robots Hopped . | . . . . Cave-ins Triggered . | . . . . Exploration Rate (%) 31 | 4 24 38 58 Regions Visited 3 Branch Regions 1 Pre-discovered Areas . | . . . . Known Exits Taken . | . . . . Unknown Exits Taken 3 | 1 1 1 . Scrap Searched . | . . . . Spaces Dug . | . . . . Terrain Destroyed . | . . . . Melee . | . . . . Projectile . | . . . . AOE . | . . . . Terrain Rammed . | . . . . Walls Destroyed . | . . . . Machines Disabled . | . . . . Actions | -11 -10 -9 -9 --------- Run | Scr Mat Mat Min Total 1492 | 80 206 813 393 Wait 349 | . 53 246 50 Move 1061 | 64 140 516 341 Hop . | . . . . Pick Up 8 | 5 . 3 . Fast Attach 11 | 6 2 3 . Attach 4 | . . 4 . Detach . | . . . . Swap 7 | 1 1 5 . Drop 4 | . 1 3 . Fire 46 | 4 9 33 . Melee . | . . . . Ram 2 | . . . 2 Kick . | . . . . Crush . | . . . . Escape Stasis . | . . . . Rewire . | . . . . Trap . | . . . . Miscellaneous . | . . . . Route ------- -11/Scrapyard -10/Materials -9/Materials -9/Mines (discovered 1 exit: [*Mat]) History --------- Turn | Location | Event 8 | -11/Scrapyard | Discovered new exit (range 16) 84 | -11/Scrapyard | Entered Materials 285 | -10/Materials | Discovered new exit (range 3) 287 | -10/Materials | Entered another Materials area 287 | -9/Materials | Evolved 2 slots: Weapon x2 588 | -9/Materials | Build established: Gunner 886 | -9/Materials | Core integrity fell below 50% 908 | -9/Materials | Lost 8 parts (1p3n4w) 995 | -9/Materials | Core integrity fell below 20% 1031 | -9/Materials | Discovered new exit (range 9) 1035 | -9/Materials | Entered Mines 1127 | -9/Mines | Learned Materials emergency access door positions 1178 | -9/Mines | Build established: Mutant 1255 | -9/Mines | Discovered new exit (range 8) 1257 | -9/Mines | Destroyed by S-10 Pest with Light Assault Rifle Last Messages --------------- K-01 Serf cleans the Electrolysis Chamber. ALERT: Hostiles spotted, dispatching reinforcements to Terminal M007. K-01 Serf cleans the Electrolysis Chamber. Wheel destroyed. K-01 Serf cleans the Electrolysis Chamber. Lgt. Ion Engine destroyed. ALERT: Hostiles spotted, dispatching reinforcements to Terminal M006. W-16 Scout sends out distress signal. EXIT=FOUND LOCATION=UNKNOWN GOAL=ESCAPE Something is scanning the area. K-01 Serf collects debris. A pair of derelicts emerge from the shadows: "We're, um, lost. You wouldn't happen to know the way out of here, would you?" Acquired derelict log, extracted data. Data stored: Materials emergency access points. K-01 Serf cleans the Matter Pump. EXIT=FOUND Slammed into S-10 Pest. Map ----- +----------------------------------------------------+ | ??????????????????????# #?? | | ??????????????????????### ####?? | | ????????????????????????# #??? | | ??????????? #??????#### ## | | ?????????? ??????# | | ????????? #?????# # | | ????????? #????# ######### | | ???????? ##??# #???????? | | ????????? ##?# #???????? | | ????????????# ### ###?????? | | ?????????????# ##????? | | ??????????????# #????? | | ??????????????## #????? | | ???????????????# ##???? | | ???????????????# ###?? | | ??????????????## ### | | ?????????????## ## | | ????????????## ### ## | | ????????????# ##?## #### "" | | ?########??## ##???####??# "" | | ?# #??# #?????????## "" | | ?# """ #??# ##?????##### | | ?# """ #??# ##?????## | | ?# """ #??# #?????## ## | | ?# #### #???### ### | | ?# s@% #???# ##?? | | ?#